[Event "Late-Titled-Tuesday-Blitz-June-18-2024"]
[Site "Chess.com"]
[Date "2024.06.18"]
[Round "2"]
[White "PapaieDudu"]
[Black "kylelancman"]
[Result "1-0"]
[WhiteElo "2367"]
[BlackElo "2549"]
[TimeControl "180+1"]
[EndTime "14:20:10 PDT"]
[Termination "PapaieDudu won by checkmate"]

1. Nf3 {[%clk 0:02:56.7]} 1... Nf6 {[%clk 0:02:58]} 2. d4 {[%clk 0:02:57]} 2...
d5 {[%clk 0:02:56.1]} 3. c4 {[%clk 0:02:57.9]} 3... e6 {[%clk 0:02:55.6]} 4. Nc3
{[%clk 0:02:58.8]} 4... c5 {[%clk 0:02:55.1]} 5. Bg5 {[%clk 0:02:59.7]} 5...
dxc4 {[%clk 0:02:47.9]} 6. e3 {[%clk 0:03:00.1]} 6... Nc6 {[%clk 0:02:45.5]} 7.
dxc5 {[%clk 0:03:00.3]} 7... Qa5 {[%clk 0:02:34.5]} 8. Bxc4 {[%clk 0:02:59.6]}
8... Ne4 {[%clk 0:02:31.1]} 9. O-O {[%clk 0:02:59.5]} 9... Nxg5 {[%clk
0:02:22.3]} 10. Nxg5 {[%clk 0:02:59.9]} 10... Qxc5 {[%clk 0:02:22.2]} 11. Nb5
{[%clk 0:02:56.1]} 11... Na5 {[%clk 0:01:51]} 12. Ne4 {[%clk 0:02:48.4]} 12...
Qc6 {[%clk 0:01:37.9]} 13. Rc1 {[%clk 0:02:43.4]} 13... Nxc4 {[%clk 0:01:33.9]}
14. Nbd6+ {[%clk 0:01:56.9]} 14... Bxd6 {[%clk 0:01:27.6]} 15. Rxc4 {[%clk
0:01:56.8]} 15... Qd5 {[%clk 0:00:40.1]} 16. Rd4 {[%clk 0:01:52.7]} 16... Bxh2+
{[%clk 0:00:21.4]} 17. Kxh2 {[%clk 0:01:53]} 17... Qe5+ {[%clk 0:00:21.4]} 18.
f4 {[%clk 0:01:49.5]} 18... Qa5 {[%clk 0:00:20.1]} 19. Nd6+ {[%clk 0:01:37.4]}
19... Ke7 {[%clk 0:00:20.1]} 20. Nxb7 {[%clk 0:01:20.2]} 20... Bxb7 {[%clk
0:00:15.5]} 21. Rd7+ {[%clk 0:01:20.1]} 21... Kf6 {[%clk 0:00:13.2]} 22. Qd4+
{[%clk 0:01:18.6]} 22... Kg6 {[%clk 0:00:13.2]} 23. Rxb7 {[%clk 0:01:08.3]}
23... Qh5+ {[%clk 0:00:13.2]} 24. Kg3 {[%clk 0:01:07]} 24... Rhd8 {[%clk
0:00:13.3]} 25. Qe4+ {[%clk 0:00:54.1]} 25... Qf5 {[%clk 0:00:13]} 26. Qf3
{[%clk 0:00:45.1]} 26... Rd3 {[%clk 0:00:08.1]} 27. Rb3 {[%clk 0:00:19.5]} 27...
Rad8 {[%clk 0:00:07.5]} 28. Rc1 {[%clk 0:00:10.9]} 28... h5 {[%clk 0:00:06.3]}
29. Rcc3 {[%clk 0:00:09.4]} 29... Rxc3 {[%clk 0:00:04.4]} 30. Rxc3 {[%clk
0:00:09.3]} 30... Rd2 {[%clk 0:00:04.8]} 31. e4 {[%clk 0:00:08.5]} 31... Qg4+
{[%clk 0:00:02.7]} 32. Qxg4+ {[%clk 0:00:08.5]} 32... hxg4 {[%clk 0:00:03.6]}
33. Rb3 {[%clk 0:00:08.3]} 33... f5 {[%clk 0:00:03.1]} 34. e5 {[%clk 0:00:07.4]}
34... Rd4 {[%clk 0:00:02]} 35. Rb7 {[%clk 0:00:06.3]} 35... Rd3+ {[%clk
0:00:01.9]} 36. Kh4 {[%clk 0:00:06.9]} 36... Rd2 {[%clk 0:00:02.4]} 37. Kg3
{[%clk 0:00:07.3]} 37... Rd3+ {[%clk 0:00:02.8]} 38. Kh2 {[%clk 0:00:07.3]}
38... g3+ {[%clk 0:00:03]} 39. Kh3 {[%clk 0:00:07.9]} 39... Rd4 {[%clk
0:00:03.4]} 40. Rxa7 {[%clk 0:00:07.8]} 40... Rd3 {[%clk 0:00:04.3]} 41. Ra4
{[%clk 0:00:06.8]} 41... Re3 {[%clk 0:00:04.2]} 42. Rb4 {[%clk 0:00:06.5]} 42...
Kh5 {[%clk 0:00:04.1]} 43. a4 {[%clk 0:00:05.9]} 43... g5 {[%clk 0:00:03.8]} 44.
fxg5 {[%clk 0:00:05.7]} 44... f4 {[%clk 0:00:04.1]} 45. Rxf4 {[%clk 0:00:05.7]}
45... Rxe5 {[%clk 0:00:04.2]} 46. Kxg3 {[%clk 0:00:05.5]} 46... Rxg5+ {[%clk
0:00:04.7]} 47. Kf3 {[%clk 0:00:06.2]} 47... Rc5 {[%clk 0:00:04.9]} 48. Kg3
{[%clk 0:00:03]} 48... Kg5 {[%clk 0:00:05]} 49. Rf3 {[%clk 0:00:03.3]} 49... e5
{[%clk 0:00:05.1]} 50. Ra3 {[%clk 0:00:03.5]} 50... e4 {[%clk 0:00:04.6]} 51. a5
{[%clk 0:00:03.4]} 51... Rc7 {[%clk 0:00:04.2]} 52. a6 {[%clk 0:00:03]} 52...
Ra7 {[%clk 0:00:04.8]} 53. Kf2 {[%clk 0:00:02.9]} 53... Kf4 {[%clk 0:00:05.2]}
54. b4 {[%clk 0:00:02.6]} 54... Rc7 {[%clk 0:00:03.9]} 55. Ra2 {[%clk
0:00:01.6]} 55... e3+ {[%clk 0:00:03.8]} 56. Ke2 {[%clk 0:00:01.9]} 56... Ke4
{[%clk 0:00:03.5]} 57. a7 {[%clk 0:00:01.9]} 57... Rf7 {[%clk 0:00:04.4]} 58.
a8=Q+ {[%clk 0:00:01.2]} 58... Kd4 {[%clk 0:00:04.1]} 59. Qf3 {[%clk 0:00:01.8]}
59... Rc7 {[%clk 0:00:03.7]} 60. Qxe3+ {[%clk 0:00:02]} 60... Kd5 {[%clk
0:00:04.6]} 61. Rd2+ {[%clk 0:00:02.3]} 61... Kc6 {[%clk 0:00:04.2]} 62. Qc5+
{[%clk 0:00:02.7]} 62... Kb7 {[%clk 0:00:05.1]} 63. Qb5+ {[%clk 0:00:03.3]}
63... Kc8 {[%clk 0:00:05.2]} 64. Qa6+ {[%clk 0:00:03.9]} 64... Kb8 {[%clk
0:00:05.6]} 65. Rd8+ {[%clk 0:00:04.3]} 65... Rc8 {[%clk 0:00:06.5]} 66. Rxc8#
{[%clk 0:00:05.2]} 1-0

[Event "Late-Titled-Tuesday-Blitz-June-18-2024"]
[Site "Chess.com"]
[Date "2024.06.18"]
[Round "2"]
[White "HansOnTwitch"]
[Black "yaguigor"]
[Result "1-0"]
[WhiteElo "3135"]
[BlackElo "2650"]
[TimeControl "180+1"]
[EndTime "14:20:12 PDT"]
[Termination "HansOnTwitch won on time"]

1. e4 {[%clk 0:03:00.9]} 1... c5 {[%clk 0:02:58.8]} 2. Nf3 {[%clk 0:02:57.4]}
2... Nc6 {[%clk 0:02:58.2]} 3. Bb5 {[%clk 0:02:50]} 3... g6 {[%clk 0:02:57]} 4.
Bxc6 {[%clk 0:02:48.7]} 4... bxc6 {[%clk 0:02:56.5]} 5. O-O {[%clk 0:02:43.9]}
5... Bg7 {[%clk 0:02:56.3]} 6. Re1 {[%clk 0:02:43.5]} 6... Nh6 {[%clk
0:02:55.7]} 7. c3 {[%clk 0:02:41.2]} 7... O-O {[%clk 0:02:55.6]} 8. d4 {[%clk
0:02:41.2]} 8... cxd4 {[%clk 0:02:54.6]} 9. cxd4 {[%clk 0:02:42.1]} 9... d5
{[%clk 0:02:54.5]} 10. e5 {[%clk 0:02:39.2]} 10... f6 {[%clk 0:02:54.8]} 11. h3
{[%clk 0:02:38]} 11... fxe5 {[%clk 0:02:51.4]} 12. Nxe5 {[%clk 0:02:37]} 12...
Qb6 {[%clk 0:02:50.6]} 13. Na3 {[%clk 0:01:52.4]} 13... Nf5 {[%clk 0:02:48.8]}
14. Nc2 {[%clk 0:01:52.2]} 14... c5 {[%clk 0:02:34.7]} 15. dxc5 {[%clk
0:01:50.9]} 15... Qxc5 {[%clk 0:02:34.4]} 16. Bf4 {[%clk 0:01:49.6]} 16... e6
{[%clk 0:01:59.7]} 17. Rc1 {[%clk 0:01:45.3]} 17... Qb6 {[%clk 0:01:53.8]} 18.
b3 {[%clk 0:01:40]} 18... a5 {[%clk 0:01:39.5]} 19. Qd2 {[%clk 0:01:38.1]} 19...
Ra7 {[%clk 0:01:37.8]} 20. Ng4 {[%clk 0:01:37.2]} 20... h5 {[%clk 0:01:18.1]}
21. Ne5 {[%clk 0:01:35.2]} 21... Kh7 {[%clk 0:01:08.9]} 22. Nf3 {[%clk
0:01:35.2]} 22... Re7 {[%clk 0:01:01.7]} 23. Be5 {[%clk 0:01:07.1]} 23... Bh6
{[%clk 0:00:54.6]} 24. Ng5+ {[%clk 0:01:06.3]} 24... Kg8 {[%clk 0:00:54.9]} 25.
Kh2 {[%clk 0:01:06.5]} 25... Bb7 {[%clk 0:00:42.6]} 26. f4 {[%clk 0:00:57.6]}
26... Bxg5 {[%clk 0:00:36.5]} 27. fxg5 {[%clk 0:00:57.2]} 27... Ref7 {[%clk
0:00:36.3]} 28. Bf6 {[%clk 0:00:57.1]} 28... Rc8 {[%clk 0:00:33.3]} 29. Qf4
{[%clk 0:00:45.7]} 29... Rfc7 {[%clk 0:00:31.4]} 30. Qd2 {[%clk 0:00:31.9]}
30... d4 {[%clk 0:00:27.1]} 31. Be5 {[%clk 0:00:26]} 31... Rc6 {[%clk
0:00:20.6]} 32. Na3 {[%clk 0:00:13.6]} 32... Rxc1 {[%clk 0:00:19]} 33. Rxc1
{[%clk 0:00:14.5]} 33... Rxc1 {[%clk 0:00:16.1]} 34. Qxc1 {[%clk 0:00:15.4]}
34... Qc6 {[%clk 0:00:15]} 35. Qxc6 {[%clk 0:00:15.3]} 35... Bxc6 {[%clk
0:00:15.9]} 36. Nc4 {[%clk 0:00:16.1]} 36... a4 {[%clk 0:00:15.7]} 37. bxa4
{[%clk 0:00:09.6]} 37... Bxa4 {[%clk 0:00:15.7]} 38. Bf4 {[%clk 0:00:06.3]}
38... d3 {[%clk 0:00:14.5]} 39. Ne5 {[%clk 0:00:06.2]} 39... Bb5 {[%clk
0:00:13.3]} 40. Nxg6 {[%clk 0:00:06]} 40... Kf7 {[%clk 0:00:12]} 41. Ne5+ {[%clk
0:00:06.2]} 41... Ke8 {[%clk 0:00:12.1]} 42. Kg1 {[%clk 0:00:06.7]} 42... Nd4
{[%clk 0:00:09.8]} 43. Kf2 {[%clk 0:00:07]} 43... Ne2 {[%clk 0:00:09.5]} 44. Bd2
{[%clk 0:00:06.6]} 44... Nd4 {[%clk 0:00:04.2]} 45. g4 {[%clk 0:00:06.3]} 45...
hxg4 {[%clk 0:00:03.7]} 46. Nxg4 {[%clk 0:00:07.2]} 46... Nf5 {[%clk 0:00:03.4]}
47. Ne5 {[%clk 0:00:06.8]} 47... Nh4 {[%clk 0:00:03]} 48. Kg3 {[%clk 0:00:06.5]}
48... Nf5+ {[%clk 0:00:03.2]} 49. Kg4 {[%clk 0:00:07]} 49... Nd6 {[%clk
0:00:03.3]} 50. Kf4 {[%clk 0:00:06.9]} 50... Nf7 {[%clk 0:00:03.7]} 51. h4
{[%clk 0:00:04]} 51... Nxe5 {[%clk 0:00:02.6]} 52. Kxe5 {[%clk 0:00:04.9]} 52...
Kf7 {[%clk 0:00:03.5]} 53. h5 {[%clk 0:00:05.3]} 53... Bc4 {[%clk 0:00:03]} 54.
a4 {[%clk 0:00:04.5]} 54... Kg7 {[%clk 0:00:02.3]} 55. a5 {[%clk 0:00:03.8]}
55... Kh7 {[%clk 0:00:02]} 56. Bc3 {[%clk 0:00:03.5]} 56... Kg8 {[%clk 0:00:02]}
57. g6 {[%clk 0:00:03.3]} 57... Kg7 {[%clk 0:00:02]} 58. Bd2 {[%clk 0:00:04]}
58... Bb5 {[%clk 0:00:01]} 59. Kf4 {[%clk 0:00:04.5]} 59... Bc4 {[%clk 0:00:01]}
60. Kg5 {[%clk 0:00:04.7]} 60... Bb5 {[%clk 0:00:01.2]} 61. h6+ {[%clk
0:00:05.6]} 61... Kg8 {[%clk 0:00:01.7]} 62. h7+ {[%clk 0:00:06.5]} 1-0

[Event "Late-Titled-Tuesday-Blitz-June-18-2024"]
[Site "Chess.com"]
[Date "2024.06.18"]
[Round "2"]
[White "BardArtem"]
[Black "Slovak_fighter2000"]
[Result "1-0"]
[WhiteElo "2859"]
[BlackElo "2581"]
[TimeControl "180+1"]
[EndTime "14:20:12 PDT"]
[Termination "BardArtem won on time"]

1. e4 {[%clk 0:03:00.9]} 1... e6 {[%clk 0:02:59]} 2. d4 {[%clk 0:03:00.3]} 2...
d5 {[%clk 0:02:59]} 3. Nc3 {[%clk 0:03:00.9]} 3... Nf6 {[%clk 0:02:57.9]} 4. Qd3
{[%clk 0:03:00.5]} 4... dxe4 {[%clk 0:02:42.9]} 5. Nxe4 {[%clk 0:03:01.4]} 5...
Nbd7 {[%clk 0:02:41.5]} 6. Nf3 {[%clk 0:02:53.5]} 6... b6 {[%clk 0:02:33.8]} 7.
Nxf6+ {[%clk 0:02:37]} 7... Nxf6 {[%clk 0:02:32]} 8. Qb5+ {[%clk 0:02:33.7]}
8... Bd7 {[%clk 0:02:27.7]} 9. Qb3 {[%clk 0:02:33.9]} 9... Bd6 {[%clk
0:02:23.2]} 10. Bd3 {[%clk 0:02:33.4]} 10... O-O {[%clk 0:02:14.7]} 11. O-O
{[%clk 0:02:31.1]} 11... c5 {[%clk 0:02:12.8]} 12. dxc5 {[%clk 0:02:26.3]} 12...
Bxc5 {[%clk 0:02:12.7]} 13. Bg5 {[%clk 0:02:23.7]} 13... h6 {[%clk 0:02:12.2]}
14. Bh4 {[%clk 0:02:23.7]} 14... Bc6 {[%clk 0:02:03.2]} 15. Bb5 {[%clk
0:02:20.1]} 15... Bxb5 {[%clk 0:01:54.8]} 16. Qxb5 {[%clk 0:02:21]} 16... Qd5
{[%clk 0:01:51.3]} 17. c4 {[%clk 0:02:11.6]} 17... Qf5 {[%clk 0:01:45.7]} 18. b4
{[%clk 0:02:08.4]} 18... Be7 {[%clk 0:01:41.6]} 19. Qxf5 {[%clk 0:02:06.5]}
19... exf5 {[%clk 0:01:42.5]} 20. Nd4 {[%clk 0:02:07]} 20... Bxb4 {[%clk
0:01:37.5]} 21. Bxf6 {[%clk 0:02:04.9]} 21... gxf6 {[%clk 0:01:38.4]} 22. Nxf5
{[%clk 0:02:05.6]} 22... Kh7 {[%clk 0:01:36.9]} 23. Rfd1 {[%clk 0:01:57.2]}
23... Rad8 {[%clk 0:01:36.3]} 24. Kf1 {[%clk 0:01:54.3]} 24... Rfe8 {[%clk
0:01:30.9]} 25. Ne3 {[%clk 0:01:49.7]} 25... Bc5 {[%clk 0:01:08.8]} 26. Nd5
{[%clk 0:01:48.1]} 26... Kg7 {[%clk 0:01:08.8]} 27. Rd3 {[%clk 0:01:41.1]} 27...
Re5 {[%clk 0:01:03.6]} 28. a4 {[%clk 0:01:35.5]} 28... Rde8 {[%clk 0:00:55.4]}
29. Rg3+ {[%clk 0:01:25.8]} 29... Rg5 {[%clk 0:00:55.1]} 30. Rf3 {[%clk
0:01:26.5]} 30... Re4 {[%clk 0:00:43.4]} 31. Rc1 {[%clk 0:01:09]} 31... Re6
{[%clk 0:00:43.1]} 32. g3 {[%clk 0:01:06]} 32... Rge5 {[%clk 0:00:42.1]} 33. Kg2
{[%clk 0:00:36.5]} 33... Re2 {[%clk 0:00:41]} 34. Nf4 {[%clk 0:00:36.8]} 34...
Ra2 {[%clk 0:00:36.8]} 35. Nxe6+ {[%clk 0:00:36.7]} 35... fxe6 {[%clk
0:00:37.5]} 36. Rd1 {[%clk 0:00:24.2]} 36... Rxa4 {[%clk 0:00:33.5]} 37. Rd7+
{[%clk 0:00:24.6]} 37... Kg6 {[%clk 0:00:34]} 38. h4 {[%clk 0:00:23.2]} 38... h5
{[%clk 0:00:30.5]} 39. Rc7 {[%clk 0:00:09.1]} 39... a5 {[%clk 0:00:27.2]} 40.
Rc6 {[%clk 0:00:04.1]} 40... Kf7 {[%clk 0:00:26.8]} 41. Rc7+ {[%clk 0:00:04.3]}
41... Kg6 {[%clk 0:00:26.7]} 42. Rf4 {[%clk 0:00:04.5]} 42... e5 {[%clk
0:00:23]} 43. Rf3 {[%clk 0:00:05.1]} 43... Rxc4 {[%clk 0:00:22.3]} 44. Rc6
{[%clk 0:00:05.8]} 44... a4 {[%clk 0:00:14.2]} 45. Rcxf6+ {[%clk 0:00:06]} 45...
Kg7 {[%clk 0:00:14.4]} 46. Rf7+ {[%clk 0:00:06.5]} 46... Kg8 {[%clk 0:00:14.6]}
47. Ra7 {[%clk 0:00:06.6]} 47... a3 {[%clk 0:00:06.8]} 48. Rf5 {[%clk
0:00:04.9]} 48... Rc2 {[%clk 0:00:05.8]} 49. Rg5+ {[%clk 0:00:02.3]} 49... Kf8
{[%clk 0:00:05.8]} 50. Rxh5 {[%clk 0:00:03.1]} 50... Rxf2+ {[%clk 0:00:03.8]}
51. Kh3 {[%clk 0:00:03.8]} 51... Kg8 {[%clk 0:00:04.3]} 52. Rxe5 {[%clk
0:00:04.5]} 52... a2 {[%clk 0:00:03.6]} 53. Re8+ {[%clk 0:00:03.1]} 53... Bf8
{[%clk 0:00:03.9]} 54. Rea8 {[%clk 0:00:03.7]} 54... Rf3 {[%clk 0:00:02.1]} 55.
Rxa2 {[%clk 0:00:03.8]} 55... Kf7 {[%clk 0:00:01.7]} 56. R2a7+ {[%clk
0:00:03.5]} 56... Ke6 {[%clk 0:00:01.8]} 57. Re8+ {[%clk 0:00:03.2]} 57... Be7
{[%clk 0:00:01.3]} 58. Raxe7+ {[%clk 0:00:02.9]} 1-0

[Event "Late-Titled-Tuesday-Blitz-June-18-2024"]
[Site "Chess.com"]
[Date "2024.06.18"]
[Round "2"]
[White "Individoom"]
[Black "maximnovik"]
[Result "0-1"]
[WhiteElo "2807"]
[BlackElo "2580"]
[TimeControl "180+1"]
[EndTime "14:20:13 PDT"]
[Termination "maximnovik won by resignation"]

1. d4 {[%clk 0:02:59.8]} 1... Nf6 {[%clk 0:02:59.4]} 2. Nf3 {[%clk 0:03:00]}
2... g6 {[%clk 0:02:59.5]} 3. Bf4 {[%clk 0:02:58.1]} 3... Bg7 {[%clk 0:02:59.5]}
4. e3 {[%clk 0:02:58.5]} 4... d6 {[%clk 0:03:00.1]} 5. h3 {[%clk 0:02:58.4]}
5... O-O {[%clk 0:03:00.6]} 6. Be2 {[%clk 0:02:58.6]} 6... b6 {[%clk 0:03:01.1]}
7. O-O {[%clk 0:02:58.1]} 7... c5 {[%clk 0:03:01.7]} 8. c3 {[%clk 0:02:57.8]}
8... Ba6 {[%clk 0:03:02.2]} 9. Bxa6 {[%clk 0:02:55.5]} 9... Nxa6 {[%clk
0:03:01.6]} 10. a4 {[%clk 0:02:49]} 10... Qc8 {[%clk 0:03:01.4]} 11. Na3 {[%clk
0:02:46.2]} 11... Qb7 {[%clk 0:03:01.3]} 12. Nd2 {[%clk 0:02:37.4]} 12... Nc7
{[%clk 0:03:00.1]} 13. Re1 {[%clk 0:02:34.3]} 13... a6 {[%clk 0:02:56]} 14. Qe2
{[%clk 0:02:12.6]} 14... Ne6 {[%clk 0:02:54.6]} 15. Bh2 {[%clk 0:02:10.3]} 15...
Nd7 {[%clk 0:02:53.4]} 16. Rec1 {[%clk 0:01:55.1]} 16... Rfb8 {[%clk 0:02:52.2]}
17. b4 {[%clk 0:01:54.5]} 17... cxb4 {[%clk 0:02:47.4]} 18. cxb4 {[%clk
0:01:54]} 18... Rc8 {[%clk 0:02:47.4]} 19. b5 {[%clk 0:01:50]} 19... a5 {[%clk
0:02:44.1]} 20. Qf3 {[%clk 0:01:21.7]} 20... Qxf3 {[%clk 0:02:32.7]} 21. gxf3
{[%clk 0:01:21.8]} 21... Kf8 {[%clk 0:02:22.5]} 22. Rc6 {[%clk 0:01:15.2]} 22...
Nd8 {[%clk 0:02:11.2]} 23. Rcc1 {[%clk 0:01:12]} 23... Ke8 {[%clk 0:02:10.6]}
24. Nac4 {[%clk 0:01:05.4]} 24... f5 {[%clk 0:02:05.4]} 25. Bxd6 {[%clk
0:01:02]} 25... Rxc4 {[%clk 0:01:56.6]} 26. Nxc4 {[%clk 0:01:01.5]} 26... exd6
{[%clk 0:01:56.5]} 27. Nxd6+ {[%clk 0:01:01.7]} 27... Ke7 {[%clk 0:01:52.6]} 28.
Nc8+ {[%clk 0:00:52]} 28... Ke6 {[%clk 0:01:45.1]} 29. Rc7 {[%clk 0:00:51.1]}
29... Rb8 {[%clk 0:01:36.7]} 30. Rac1 {[%clk 0:00:50.1]} 30... Bf8 {[%clk
0:01:32.1]} 31. e4 {[%clk 0:00:40.6]} 31... Nf6 {[%clk 0:01:20.3]} 32. Re1
{[%clk 0:00:26.9]} 32... Bb4 {[%clk 0:01:13.9]} 33. Re2 {[%clk 0:00:26.6]} 33...
f4 {[%clk 0:01:04.7]} 34. Rec2 {[%clk 0:00:25.1]} 34... g5 {[%clk 0:00:53]} 35.
Na7 {[%clk 0:00:23.4]} 35... Bd6 {[%clk 0:00:49.3]} 36. R7c4 {[%clk 0:00:19.4]}
36... Be7 {[%clk 0:00:45.2]} 37. Rc7 {[%clk 0:00:16.2]} 37... Ne8 {[%clk
0:00:40.5]} 38. R7c4 {[%clk 0:00:11.6]} 38... h5 {[%clk 0:00:35.5]} 39. Nc6
{[%clk 0:00:11.1]} 39... Nxc6 {[%clk 0:00:32.7]} 40. Rxc6+ {[%clk 0:00:11.4]}
40... Kf7 {[%clk 0:00:30.8]} 41. Rh6 {[%clk 0:00:11.3]} 41... Rd8 {[%clk
0:00:27.6]} 42. d5 {[%clk 0:00:10.8]} 42... Bc5 {[%clk 0:00:26]} 43. Kg2 {[%clk
0:00:10.5]} 43... Kg7 {[%clk 0:00:22.6]} 44. Rc6 {[%clk 0:00:10.1]} 44... Nd6
{[%clk 0:00:18.1]} 45. Rd2 {[%clk 0:00:09.4]} 45... Kf6 {[%clk 0:00:16.7]} 46.
Re2 {[%clk 0:00:09.3]} 46... Ke5 {[%clk 0:00:16.8]} 47. Rc7 {[%clk 0:00:09.8]}
47... Re8 {[%clk 0:00:16.3]} 48. Rg7 {[%clk 0:00:09.4]} 48... Kf6 {[%clk
0:00:15.4]} 49. Rh7 {[%clk 0:00:08.6]} 49... Nc4 {[%clk 0:00:15.1]} 50. Rh6+
{[%clk 0:00:07.6]} 50... Kg7 {[%clk 0:00:13.9]} 51. Rc6 {[%clk 0:00:07.6]} 51...
Ne5 {[%clk 0:00:13.9]} 52. Rc7+ {[%clk 0:00:07.8]} 52... Kf6 {[%clk 0:00:13.6]}
53. Rc2 {[%clk 0:00:07.3]} 53... g4 {[%clk 0:00:13.4]} 54. hxg4 {[%clk
0:00:07.6]} 54... hxg4 {[%clk 0:00:13.7]} 55. fxg4 {[%clk 0:00:07.9]} 55... f3+
{[%clk 0:00:14]} 56. Kg3 {[%clk 0:00:07.6]} 56... Bd6 {[%clk 0:00:14.3]} 57.
R2c6 {[%clk 0:00:06.9]} 57... Nxc6+ {[%clk 0:00:14.4]} 58. Kxf3 {[%clk
0:00:05.2]} 58... Bxc7 {[%clk 0:00:14.9]} 59. dxc6 {[%clk 0:00:05.1]} 59... Ke5
{[%clk 0:00:14.6]} 60. Ke3 {[%clk 0:00:05.4]} 60... Rf8 {[%clk 0:00:15.1]} 61.
f3 {[%clk 0:00:05.6]} 61... Bd6 {[%clk 0:00:15.1]} 62. g5 {[%clk 0:00:05.5]}
62... Ke6 {[%clk 0:00:14.5]} 63. g6 {[%clk 0:00:04.5]} 63... Bf4+ {[%clk
0:00:14.5]} 64. Kd4 {[%clk 0:00:04.5]} 64... Rd8+ {[%clk 0:00:14]} 65. Kc4
{[%clk 0:00:04.8]} 65... Kf6 {[%clk 0:00:13.6]} 0-1

[Event "Late-Titled-Tuesday-Blitz-June-18-2024"]
[Site "Chess.com"]
[Date "2024.06.18"]
[Round "2"]
[White "Abund"]
[Black "madmax011"]
[Result "0-1"]
[WhiteElo "2671"]
[BlackElo "2402"]
[TimeControl "180+1"]
[EndTime "14:20:14 PDT"]
[Termination "madmax011 won by checkmate"]

1. b3 {[%clk 0:03:00.9]} 1... Nf6 {[%clk 0:02:58]} 2. Bb2 {[%clk 0:03:00.6]}
2... g6 {[%clk 0:02:58.6]} 3. g3 {[%clk 0:03:00.4]} 3... Bg7 {[%clk 0:02:58.9]}
4. Bg2 {[%clk 0:03:00.9]} 4... O-O {[%clk 0:02:59.5]} 5. c4 {[%clk 0:03:01.3]}
5... c6 {[%clk 0:02:58.3]} 6. Nf3 {[%clk 0:03:01.3]} 6... d5 {[%clk 0:02:57.9]}
7. O-O {[%clk 0:03:01.8]} 7... Bf5 {[%clk 0:02:54.4]} 8. d3 {[%clk 0:03:01.9]}
8... Re8 {[%clk 0:02:41.4]} 9. Nbd2 {[%clk 0:03:01.1]} 9... Nbd7 {[%clk
0:02:39.8]} 10. Nh4 {[%clk 0:02:56.2]} 10... Bg4 {[%clk 0:02:38.3]} 11. h3
{[%clk 0:02:53.4]} 11... Be6 {[%clk 0:02:38.1]} 12. a3 {[%clk 0:02:51.7]} 12...
Nf8 {[%clk 0:02:27.6]} 13. Rc1 {[%clk 0:02:50.6]} 13... Qd7 {[%clk 0:02:24.4]}
14. Kh2 {[%clk 0:02:50.2]} 14... Rac8 {[%clk 0:02:23.1]} 15. Rc2 {[%clk
0:02:49.8]} 15... Bf5 {[%clk 0:02:17.5]} 16. Qa1 {[%clk 0:02:47.4]} 16... Red8
{[%clk 0:01:55.4]} 17. Ndf3 {[%clk 0:02:45.8]} 17... Qc7 {[%clk 0:01:50.2]} 18.
Nxf5 {[%clk 0:02:44.4]} 18... gxf5 {[%clk 0:01:49.8]} 19. Nh4 {[%clk 0:02:43.6]}
19... Qd7 {[%clk 0:01:50.1]} 20. Rfc1 {[%clk 0:02:41.8]} 20... d4 {[%clk
0:01:44.1]} 21. c5 {[%clk 0:02:38.8]} 21... Ng6 {[%clk 0:01:41.2]} 22. Nf3
{[%clk 0:02:38.6]} 22... e5 {[%clk 0:01:38.2]} 23. b4 {[%clk 0:02:35.9]} 23...
Qe6 {[%clk 0:01:35.1]} 24. Ng5 {[%clk 0:02:29.7]} 24... Qe7 {[%clk 0:01:33.6]}
25. Nf3 {[%clk 0:02:29.4]} 25... f4 {[%clk 0:01:22]} 26. Re1 {[%clk 0:02:20.3]}
26... fxg3+ {[%clk 0:01:21.2]} 27. fxg3 {[%clk 0:02:21.2]} 27... Nd5 {[%clk
0:01:20.2]} 28. Bc1 {[%clk 0:02:16.4]} 28... Re8 {[%clk 0:01:12.7]} 29. Ng5
{[%clk 0:02:05.5]} 29... h6 {[%clk 0:01:09]} 30. Ne4 {[%clk 0:02:05.8]} 30...
Rcd8 {[%clk 0:01:05.4]} 31. Nd6 {[%clk 0:02:04.4]} 31... Rf8 {[%clk 0:01:05.7]}
32. Nf5 {[%clk 0:02:03.4]} 32... Qe6 {[%clk 0:01:04.4]} 33. Nxh6+ {[%clk
0:01:58.6]} 33... Kh7 {[%clk 0:01:02.3]} 34. Ng4 {[%clk 0:01:49.2]} 34... f5
{[%clk 0:01:02.5]} 35. Nf2 {[%clk 0:01:49.5]} 35... f4 {[%clk 0:00:58.6]} 36. g4
{[%clk 0:01:34]} 36... Ne3 {[%clk 0:00:55.6]} 37. Qa2 {[%clk 0:01:31.8]} 37...
Qe7 {[%clk 0:00:49.8]} 38. Ne4 {[%clk 0:01:10]} 38... Qh4 {[%clk 0:00:40.4]} 39.
Bxe3 {[%clk 0:00:54.1]} 39... fxe3 {[%clk 0:00:32.1]} 40. Rh1 {[%clk 0:00:52.6]}
40... Bh6 {[%clk 0:00:28.3]} 41. Qb1 {[%clk 0:00:44.7]} 41... Rf2 {[%clk
0:00:22]} 42. g5 {[%clk 0:00:19.3]} 42... Bxg5 {[%clk 0:00:21.3]} 43. Nxg5+
{[%clk 0:00:19.4]} 43... Qxg5 {[%clk 0:00:20.2]} 44. Rg1 {[%clk 0:00:20.1]}
44... Nf4 {[%clk 0:00:14]} 45. Kh1 {[%clk 0:00:11.9]} 45... Rxg2 {[%clk
0:00:13.5]} 46. Qf1 {[%clk 0:00:12.6]} 46... Rg8 {[%clk 0:00:12.7]} 47. Rxg2
{[%clk 0:00:12.1]} 47... Qxg2+ {[%clk 0:00:12]} 48. Qxg2 {[%clk 0:00:12.6]}
48... Rxg2 {[%clk 0:00:12.9]} 49. a4 {[%clk 0:00:12.4]} 49... Rxe2 {[%clk
0:00:12.5]} 50. Rc1 {[%clk 0:00:12.5]} 50... Nxd3 {[%clk 0:00:11.9]} 51. Rf1
{[%clk 0:00:11.9]} 51... Nf2+ {[%clk 0:00:10.3]} 52. Kg2 {[%clk 0:00:12.5]}
52... Ne4+ {[%clk 0:00:10.2]} 53. Kf3 {[%clk 0:00:13.1]} 53... Rf2+ {[%clk
0:00:10.4]} 54. Rxf2 {[%clk 0:00:05.4]} 54... Nxf2 {[%clk 0:00:11.3]} 55. Ke2
{[%clk 0:00:05.5]} 55... e4 {[%clk 0:00:10.9]} 56. b5 {[%clk 0:00:05.1]} 56...
Nxh3 {[%clk 0:00:10]} 57. b6 {[%clk 0:00:05.1]} 57... a6 {[%clk 0:00:09.6]} 58.
a5 {[%clk 0:00:05.5]} 58... Nf4+ {[%clk 0:00:09.9]} 59. Ke1 {[%clk 0:00:06.2]}
59... Kg6 {[%clk 0:00:10.4]} 60. Kd1 {[%clk 0:00:06.7]} 60... Kg5 {[%clk
0:00:09.4]} 61. Ke1 {[%clk 0:00:07.6]} 61... Kg4 {[%clk 0:00:09.9]} 62. Kf1
{[%clk 0:00:08.5]} 62... Kf3 {[%clk 0:00:09.8]} 63. Kg1 {[%clk 0:00:08.9]} 63...
e2 {[%clk 0:00:09.8]} 64. Kh2 {[%clk 0:00:09.8]} 64... Ne6 {[%clk 0:00:08.4]}
65. Kh3 {[%clk 0:00:10]} 65... e1=Q {[%clk 0:00:08.4]} 66. Kh2 {[%clk
0:00:10.9]} 66... Qg3+ {[%clk 0:00:08.6]} 67. Kh1 {[%clk 0:00:11.2]} 67... Qg2#
{[%clk 0:00:09.3]} 0-1